[Event "106th British-ch Major 2019"]
[Site "Torquay"]
[Date "2019.07.30"]
[Round "4.3"]
[White "Eames, Robert S"]
[Black "Ashworth, Michael"]
[Result "0-1"]
[ECO "E20"]
[WhiteElo "2136"]
[BlackElo "1957"]
[Annotator "NA"]
[PlyCount "62"]
[EventDate "2019.07.27"]
[EventType "swiss"]
[EventCountry "GBR"]
[SourceTitle "playchess.com"]
[Source "ChessBase"]
[SourceQuality "1"]
[TimeControl "40/5400+30:1800+30"]

1. d4 {[%emt 0:00:00]} Nf6 {[%emt 0:00:18]} 2. c4 {[%emt 0:00:00]} e6 {[%emt 0:00:26]} 3. Nc3 {[%emt 0:00:49]} Bb4 {[%emt 0:00:23]} 4. f3 {[%emt 0:00:26]} d5 {[%emt 0:00:49]} 5. a3 {[%emt 0:00:14]} Be7 {[%emt 0:00:43]} 6. e4 {[%emt 0:00:46]} dxe4 {[%emt 0:00:09]} 7. fxe4 {[%emt 0:00:10]} e5 {[%emt 0:00:13]} 8. d5 {[%emt 0:00:29]} Bc5 {[%emt 0:00:15]} 9. Nf3 {[%emt 0:00:45]} Bg4 {[%emt 0:01:30]} 10. h3 {[%emt 0:01:08]} Bxf3 {[%emt 0:00:34]} 11. Qxf3 {[%emt 0:00:31]} Nbd7 {[%emt 0:02:23]} 12. Bd3 {[%emt 0:01:01]} O-O {[%emt 0:09:04]} 13. Bd2 {[%emt 0:07:18]} a5 {[%emt 0:11:44]} 14. Ke2 {[%emt 0:07:00]} Ne8 {[%emt 0:06:44]} 15. Raf1 {[%emt 0:03:56]} Nd6 {[%emt 0:04:30]} 16. g4 {[%emt 0:03:15]} Nb6 {[%emt 0:04:53]} 17. b3 {[%emt 0:00:56]} Bxa3 {[%emt 0:02:26]} 18. Nb1 {[%emt 0:05:39]} Bc5 {[%emt 0:02:00]} 19. Bc3 {[%emt 0:00:19]} Qe7 {[%emt 0:03:51]} 20. Nd2 {[%emt 0:00:28]} Nd7 {[%emt 0:05:08]} 21. h4 {[%emt 0:01:52]} Bd4 {[%emt 0:04:18]} 22. Bxd4 {[%emt 0:08:31]} exd4 {[%emt 0:00:07]} 23. Qf2 {[%emt 0:01:57]} f5 {[%emt 0:07:35]} 24. gxf5 {[%emt 0:08:16]} Nxf5 {[%emt 0:03:02]} 25. Qh2 {[%emt 0:03:19]} Ne5 {[%emt 0:07:47]} 26. Qh3 {[%emt 0:05:44]} Ne3 {[%emt 0:02:00]} 27. Rxf8+ {[%emt 0:01:35]} Rxf8 {[%emt 0:00:16]} 28. Rg1 {[%emt 0:08:45]} Rf2+ {[%emt 0:12:23]} 29. Kxf2 {[%emt 0:00:32]} Nxd3+ {[%emt 0:00:08]} 30. Kg3 {[%emt 0:01:44]} Qe5+ {[%emt 0:00:35]} 31. Kf3 {[%emt 0:00:09]} Qf6+ {[%emt 0:00:09]} 0-1

[Event "106th British-ch Major 2019"]
[Site "Torquay"]
[Date "2019.07.30"]
[Round "4.4"]
[White "Lentzos, Ioanis"]
[Black "Rogacewicz, Mikolaj"]
[Result "0-1"]
[ECO "C06"]
[WhiteElo "2043"]
[BlackElo "1925"]
[Annotator "NA"]
[PlyCount "110"]
[EventDate "2019.07.27"]
[EventType "swiss"]
[EventCountry "GBR"]
[SourceTitle "playchess.com"]
[Source "ChessBase"]
[SourceQuality "1"]
[TimeControl "40/5400+30:1800+30"]

1. e4 {[%emt 0:00:00]} e6 {[%emt 0:00:00]} 2. d4 {[%emt 0:00:00]} d5 {[%emt 0:00:00]} 3. Nd2 {[%emt 0:00:00]} Nf6 {[%emt 0:00:00]} 4. e5 {[%emt 0:00:00]} Nfd7 {[%emt 0:00:00]} 5. Bd3 {[%emt 0:00:00]} c5 {[%emt 0:00:08]} 6. c3 {[%emt 0:00:04]} Nc6 {[%emt 0:00:08]} 7. Ne2 {[%emt 0:00:18]} cxd4 {[%emt 0:00:13]} 8. cxd4 {[%emt 0:00:06]} f6 {[%emt 0:00:05]} 9. exf6 {[%emt 0:00:09]} Nxf6 {[%emt 0:00:06]} 10. O-O {[%emt 0:00:12]} Bd6 {[%emt 0:01:35]} 11. Nf3 {[%emt 0:00:15]} Qc7 {[%emt 0:00:10]} 12. Nc3 {[%emt 0:01:43]} a6 {[%emt 0:00:30]} 13. Bd2 {[%emt 0:00:12]} O-O {[%emt 0:00:34]} 14. Rc1 {[%emt 0:00:25]} Bd7 {[%emt 0:00:35]} 15. Re1 {[%emt 0:00:29]} Ng4 {[%emt 0:00:21]} 16. Bxh7+ {[%emt 0:01:16]} Kh8 {[%emt 0:00:12]} 17. g3 {[%emt 0:00:23]} Be8 {[%emt 0:00:20]} 18. Rxe6 {[%emt 0:01:30]} Nxf2 {[%emt 0:00:23]} 19. Kxf2 {[%emt 0:02:30]} Bh5 {[%emt 0:00:45]} 20. Nxd5 {[%emt 0:47:58]} Bxf3 {[%emt 0:01:50]} 21. Nxc7 {[%emt 0:00:16]} Bxd1+ {[%emt 0:00:25]} 22. Ke1 {[%emt 0:00:05]} Bxc7 {[%emt 0:01:29]} 23. d5 {[%emt 0:00:06]} Bg4 {[%emt 0:25:15]} 24. Bg6 {[%emt 0:19:27]} Bxe6 {[%emt 0:07:36]} 25. dxe6 {[%emt 0:00:03]} Rae8 {[%emt 0:11:00]} 26. Bxe8 {[%emt 0:00:41]} Rxe8 {[%emt 0:00:06]} 27. Rc4 {[%emt 0:01:54]} Rxe6+ {[%emt 0:00:22]} 28. Kf1 {[%emt 0:00:18]} Kg8 {[%emt 0:04:12]} 29. a4 {[%emt 0:02:09]} Kf7 {[%emt 0:05:17]} 30. b4 {[%emt 0:00:31]} Re5 {[%emt 0:03:47]} 31. Bc3 {[%emt 0:06:58]} Rd5 {[%emt 0:04:14]} 32. Ke2 {[%emt 0:02:54]} Rh5 {[%emt 0:03:53]} 33. Ke3 {[%emt 0:00:07]} Rxh2 {[%emt 0:01:15]} 34. b5 {[%emt 0:00:45]} Bb6+ {[%emt 0:02:44]} 35. Kd3 {[%emt 0:00:03]} axb5 {[%emt 0:01:45]} 36. axb5 {[%emt 0:00:04]} Ne7 {[%emt 0:09:54]} 37. Rf4+ {[%emt 0:00:06]} Kg8 {[%emt 0:00:48]} 38. Rg4 {[%emt 0:02:46]} Nf5 {[%emt 0:04:05]} 39. Rg5 {[%emt 0:00:22]} Rf2 {[%emt 0:00:40]} 40. Be5 {[%emt 0:00:43]} Bd8 {[%emt 0:04:16]} 41. Rg4 {[%emt 0:40:01]} Kf7 {[%emt 0:32:31]} 42. Rc4 {[%emt 0:00:00]} Nxg3 {[%emt 0:00:00]} 43. Bc7 {[%emt 0:00:00]} Ke8 {[%emt 0:00:00]} 44. Ke3 {[%emt 0:00:00]} Re2+ {[%emt 0:00:00]} 45. Kf3 {[%emt 0:00:00]} Bxc7 {[%emt 0:00:00]} 46. Rxc7 {[%emt 0:00:00]} Re7 {[%emt 0:00:00]} 47. Rc5 {[%emt 0:00:00]} Ne4 {[%emt 0:00:00]} 48. Rd5 {[%emt 0:00:00]} Nf6 {[%emt 0:00:00]} 49. Rc5 {[%emt 0:00:00]} Kd7 {[%emt 0:00:00]} 50. Kf4 {[%emt 0:00:00]} Kd6 {[%emt 0:00:00]} 51. Rc8 {[%emt 0:00:00]} Nd5+ {[%emt 0:00:00]} 52. Kf5 {[%emt 0:00:00]} Nc7 {[%emt 0:00:00]} 53. b6 {[%emt 0:00:00]} Nd5 {[%emt 0:00:00]} 54. Rd8+ {[%emt 0:00:00]} Rd7 {[%emt 0:00:00]} 55. Re8 {[%emt 0:00:00]} Nxb6 {[%emt 0:00:00]} 0-1

[Event "106th British-ch Major 2019"]
[Site "Torquay"]
[Date "2019.07.30"]
[Round "4.5"]
[White "Barton, R Alan"]
[Black "Turner, Max N"]
[Result "0-1"]
[ECO "D04"]
[WhiteElo "1941"]
[BlackElo "2026"]
[Annotator "NA"]
[PlyCount "136"]
[EventDate "2019.07.27"]
[EventType "swiss"]
[EventCountry "GBR"]
[SourceTitle "playchess.com"]
[Source "ChessBase"]
[SourceQuality "1"]
[TimeControl "40/5400+30:1800+30"]

1. Nf3 {[%emt 0:00:00]} d5 {[%emt 0:00:00]} 2. d4 {[%emt 0:01:10]} Nf6 {[%emt 0:00:13]} 3. e3 {[%emt 0:01:13]} c5 {[%emt 0:00:24]} 4. b3 {[%emt 0:01:51]} cxd4 {[%emt 0:04:27]} 5. exd4 {[%emt 0:01:23]} Nc6 {[%emt 0:00:35]} (5... g6 6. Bb2 Bg7 7. Nbd2 O-O 8. Bd3 Nc6 9. a3 Nh5 10. O-O Nf4 11. Bb5 Bg4 12. h3 Bh5 13. Bxc6 bxc6 14. Re1 c5 15. Qc1 c4 16. Re3 {0-1 (46) Mamedyarov,S (2808)-Aronian,L (2764) Leuven 2018}) 6. a3 {[%emt 0:04:33] D04: Colle System} Bg4 {[%emt 0:01:33]} 7. Be2 {[%emt 0:01:19]} e6 {[%emt 0:00:58]} 8. O-O {[%emt 0:00:32]} Bd6 {[%emt 0:02:16]} 9. Bb2 {[%emt 0:01:02]} O-O {[%emt 0:02:16]} 10. Ne5 $146 {[%emt 0:07:08]} ({Predecessor:} 10. Nbd2 h6 11. h3 Bf5 12. Re1 Rc8 13. c4 Bb8 14. c5 Ne4 15. Nf1 {0-1 (70) Hummel,T (1734)-Hoeller,A (2060) Augsburg 2011}) 10... Bxe2 {[%emt 0:06:04]} 11. Qxe2 {[%emt 0:00:05]} a5 {[%emt 0:01:23]} 12. Nd2 {[%emt 0:08:13]} a4 {[%emt 0:03:08]} 13. Nxc6 {[%emt 0:03:22]} bxc6 {[%emt 0:00:14]} 14. b4 {[%emt 0:00:07]} Bf4 {[%emt 0:22:08]} 15. Nf3 {[%emt 0:01:00]} Ne4 {[%emt 0:02:41]} 16. g3 {[%emt 0:02:37]} Bc7 {[%emt 0:02:06]} 17. c4 {[%emt 0:12:19]} f5 {[%emt 0:07:39]} 18. Ne5 {[%emt 0:12:30]} Bxe5 {[%emt 0:21:31]} 19. dxe5 {[%emt 0:00:05]} Ng5 {[%emt 0:06:23]} 20. f3 {[%emt 0:06:48]} Qb6+ {[%emt 0:01:50]} 21. Kg2 {[%emt 0:01:41]} Rad8 {[%emt 0:01:58]} 22. c5 {[%emt 0:03:36]} Qb7 {[%emt 0:01:00]} 23. Bd4 {[%emt 0:00:32]} Rb8 {[%emt 0:00:31]} 24. Qc2 {[%emt 0:04:05]} Qb5 {[%emt 0:01:00]} 25. h4 {[%emt 0:00:54]} Nf7 {[%emt 0:00:11]} 26. Rf2 {[%emt 0:04:49]} Rbd8 {[%emt 0:01:07]} 27. h5 {[%emt 0:00:53]} Qc4 {[%emt 0:02:21]} 28. Qd1 {[%emt 0:04:00]} g6 {[%emt 0:01:11]} 29. Rc1 {[%emt 0:01:08]} Qb5 {[%emt 0:00:48]} 30. Qd2 {[%emt 0:02:53]} Kg7 {[%emt 0:01:59]} 31. Rh1 {[%emt 0:01:14]} Rg8 {[%emt 0:03:24]} 32. g4 {[%emt 0:01:52]} Kf8 {[%emt 0:00:57]} 33. hxg6 {[%emt 0:00:43]} hxg6 {[%emt 0:00:19]} 34. Rh7 {[%emt 0:02:17]} Rg7 {[%emt 0:00:14]} 35. Rxg7 {[%emt 0:01:09]} Kxg7 {[%emt 0:00:05]} 36. Kg1 {[%emt 0:01:32]} Qc4 {[%emt 0:02:19]} 37. Rg2 {[%emt 0:01:30]} Rg8 {[%emt 0:00:23]} 38. Qe3 {[%emt 0:03:19]} Kf8 {[%emt 0:00:25]} 39. Rh2 {[%emt 0:00:59]} Rg7 {[%emt 0:00:39]} 40. Qc3 {[%emt 0:02:03]} Qxc3 {[%emt 0:00:32]} 41. Bxc3 {[%emt 0:30:02]} Ng5 {[%emt 0:21:18]} 42. Rh8+ {[%emt 0:00:00]} Ke7 {[%emt 0:00:22]} 43. gxf5 {[%emt 0:00:00]} gxf5 {[%emt 0:02:04]} 44. Kf2 {[%emt 0:00:00]} Rh7 {[%emt 0:00:04]} 45. Rg8 {[%emt 0:00:00]} Rh2+ {[%emt 0:02:22]} 46. Kg3 {[%emt 0:00:00]} Rc2 {[%emt 0:01:26]} 47. Bd4 {[%emt 0:00:00]} Nf7 {[%emt 0:00:53]} 48. Ra8 {[%emt 0:00:00]} Rc4 {[%emt 0:01:39]} 49. Ra7+ {[%emt 0:00:00]} Ke8 {[%emt 0:00:34]} 50. Ra8+ {[%emt 0:00:00]} Ke7 {[%emt 0:00:10]} 51. Ra7+ {[%emt 0:00:00]} Kf8 {[%emt 0:00:48]} 52. Ra8+ {[%emt 0:00:00]} Kg7 {[%emt 0:00:23]} 53. Bb2 $11 {[%emt 0:00:24]} Rc2 {[%emt 0:00:08]} 54. Bd4 {[%emt 0:00:30]} Rd2 {[%emt 0:00:17]} 55. Be3 {[%emt 0:01:54]} Rd3 {[%emt 0:00:10]} 56. Bc1 {[%emt 0:00:29]} Rc3 {[%emt 0:00:20]} 57. Bb2 {[%emt 0:00:44]} Rb3 {[%emt 0:00:09]} 58. Bc1 {[%emt 0:01:01]} Nxe5 {[%emt 0:00:21]} 59. Rxa4 {[%emt 0:00:40]} Nxf3 {[%emt 0:00:41]} 60. Kf4 {[%emt 0:00:57]} Kf6 {[%emt 0:01:14]} 61. Ra8 {[%emt 0:01:16]} Ne5 {[%emt 0:00:47]} 62. Rf8+ {[%emt 0:01:20]} Nf7 {[%emt 0:00:06]} 63. Rxf7+ {[%emt 0:00:35]} Kxf7 {[%emt 0:00:05]} 64. Ke5 {[%emt 0:00:11]} Ke7 {[%emt 0:00:10]} 65. Bd2 {[%emt 0:02:17]} Rxa3 {[%emt 0:00:42]} 66. b5 {[%emt 0:00:02]} Ra4 {[%emt 0:00:09]} 67. Bb4 {[%emt 0:01:30]} Rxb4 {[%emt 0:00:12]} 68. bxc6 {[%emt 0:00:24]} Re4# {[%emt 0:00:40] Kd4} 0-1

[Event "106th British-ch Major 2019"]
[Site "Torquay"]
[Date "2019.07.30"]
[Round "4.6"]
[White "Graham, David B"]
[Black "Pink, Joshua"]
[Result "1-0"]
[ECO "B11"]
[WhiteElo "2162"]
[BlackElo "1907"]
[Annotator "NA"]
[PlyCount "97"]
[EventDate "2019.07.27"]
[EventType "swiss"]
[EventCountry "GBR"]
[SourceTitle "playchess.com"]
[Source "ChessBase"]
[SourceQuality "1"]
[TimeControl "40/5400+30:1800+30"]

1. e4 {[%emt 0:00:00]} c6 {[%emt 0:00:15]} 2. Nc3 {[%emt 0:00:00]} d5 {[%emt 0:00:11]} 3. Nf3 {[%emt 0:00:00]} Bg4 {[%emt 0:00:07]} 4. h3 {[%emt 0:00:08]} Bxf3 {[%emt 0:00:07]} 5. Qxf3 {[%emt 0:00:03]} e6 {[%emt 0:03:10]} 6. d4 {[%emt 0:00:43]} Nf6 {[%emt 0:02:14]} 7. Bg5 {[%emt 0:12:02]} Be7 {[%emt 0:01:18]} 8. e5 {[%emt 0:01:38]} Ne4 {[%emt 0:09:01]} 9. Bxe7 {[%emt 0:01:19]} Qxe7 {[%emt 0:00:43]} 10. Nxe4 {[%emt 0:14:07]} dxe4 {[%emt 0:00:26]} 11. Qe2 {[%emt 0:00:19]} O-O {[%emt 0:05:36]} 12. O-O-O {[%emt 0:02:22]} c5 {[%emt 0:04:14]} 13. Qxe4 {[%emt 0:06:07]} cxd4 {[%emt 0:00:19]} 14. Bd3 {[%emt 0:03:01]} g6 {[%emt 0:00:26]} 15. h4 {[%emt 0:00:13]} Nc6 {[%emt 0:02:57]} 16. h5 {[%emt 0:02:00]} Nb4 {[%emt 0:06:46]} 17. a3 {[%emt 0:05:54]} Nxd3+ {[%emt 0:01:50]} 18. Rxd3 {[%emt 0:00:14]} Rac8 {[%emt 0:15:36]} 19. Rxd4 {[%emt 0:02:47]} Rfd8 {[%emt 0:02:24]} 20. Rxd8+ {[%emt 0:01:00]} Rxd8 {[%emt 0:00:26]} 21. h6 {[%emt 0:11:04]} Rd5 {[%emt 0:01:54]} 22. Qe3 {[%emt 0:01:27]} b6 {[%emt 0:01:16]} 23. Rd1 {[%emt 0:01:25]} Rxd1+ {[%emt 0:03:10]} 24. Kxd1 {[%emt 0:00:04]} Kf8 {[%emt 0:00:21]} 25. g3 {[%emt 0:12:06]} Ke8 {[%emt 0:01:53]} 26. Qf4 {[%emt 0:01:16]} Qd7+ {[%emt 0:01:15]} 27. Kc1 {[%emt 0:00:25]} Qd5 {[%emt 0:02:43]} 28. b3 {[%emt 0:03:14]} b5 {[%emt 0:04:23]} 29. Kb2 {[%emt 0:01:12]} a6 {[%emt 0:00:56]} 30. f3 {[%emt 0:01:11]} Qc5 {[%emt 0:01:24]} 31. Qe4 {[%emt 0:01:16]} Qb6 {[%emt 0:04:57]} 32. g4 {[%emt 0:01:18]} a5 {[%emt 0:01:15]} 33. f4 {[%emt 0:03:41]} b4 {[%emt 0:00:18]} 34. Qc4 {[%emt 0:03:51]} Ke7 {[%emt 0:02:50]} 35. a4 {[%emt 0:00:17]} Qe3 {[%emt 0:09:53]} 36. Qc7+ {[%emt 0:02:42]} Ke8 {[%emt 0:00:07]} 37. Qc8+ {[%emt 0:01:45]} Ke7 {[%emt 0:00:06]} 38. Qc7+ {[%emt 0:00:02]} Ke8 {[%emt 0:00:06]} 39. Qxa5 {[%emt 0:00:28]} Qxf4 {[%emt 0:02:42]} 40. Qb5+ {[%emt 0:00:16]} Kd8 {[%emt 0:02:36]} 41. Qc5 {[%emt 0:33:48]} Qxg4 {[%emt 0:32:21]} 42. a5 {[%emt 0:01:47]} Qe2 {[%emt 0:00:00]} 43. Qf8+ {[%emt 0:00:00]} Kc7 {[%emt 0:00:00]} 44. Qxf7+ {[%emt 0:00:00]} Kb8 {[%emt 0:00:00]} 45. Qxe6 {[%emt 0:00:00]} Qe3 {[%emt 0:00:00]} 46. Qg8+ {[%emt 0:00:00]} Ka7 {[%emt 0:00:00]} 47. Qxh7+ {[%emt 0:00:00]} Ka6 {[%emt 0:00:00]} 48. Qc7 {[%emt 0:00:00]} Qd4+ {[%emt 0:00:00]} 49. Ka2 {[%emt 0:00:00]} 1-0

[Event "106th British-ch Major 2019"]
[Site "Torquay"]
[Date "2019.07.30"]
[Round "4.7"]
[White "Modi, Kishan Jagdish"]
[Black "Ethelontis, Alexandros N"]
[Result "1/2-1/2"]
[ECO "B07"]
[WhiteElo "1923"]
[BlackElo "2154"]
[Annotator "ChessBase"]
[PlyCount "37"]
[EventDate "2019.07.27"]
[EventType "swiss"]
[EventCountry "GBR"]
[SourceTitle "playchess.com"]
[Source "ChessBase"]
[SourceQuality "1"]
[TimeControl "40/5400+30:1800+30"]

1. d4 {[%emt 0:01:22]} Nf6 {[%emt 0:00:00]} 2. Nf3 {[%emt 0:00:49]} g6 {[%emt 0:00:00]} 3. Nbd2 {[%emt 0:00:06]} Bg7 {[%emt 0:00:00]} 4. e4 {[%emt 0:00:29]} d6 {[%emt 0:00:00]} 5. Bd3 {[%emt 0:00:37]} O-O {[%emt 0:00:06]} 6. O-O {[%emt 0:00:42]} Nbd7 {[%emt 0:01:35]} 7. Re1 {[%emt 0:01:40]} e5 {[%emt 0:00:31]} 8. c3 {[%emt 0:00:58]} b6 {[%emt 0:01:36]} 9. a4 {[%emt 0:03:02]} a6 {[%emt 0:04:32]} 10. Nf1 {[%emt 0:09:30]} Re8 {[%emt 0:03:23]} 11. Ng3 {[%emt 0:03:03]} Bb7 {[%emt 0:02:06]} 12. h4 {[%emt 0:03:32]} d5 {[%emt 0:09:43]} 13. dxe5 {[%emt 0:09:53]} Nxe4 {[%emt 0:06:06]} 14. Nxe4 {[%emt 0:04:15]} dxe4 {[%emt 0:00:13]} 15. Bxe4 {[%emt 0:04:14]} Bxe4 {[%emt 0:01:51]} 16. Rxe4 {[%emt 0:01:50]} Nxe5 {[%emt 0:01:44]} 17. Bg5 {[%emt 0:03:30]} Qc8 {[%emt 0:06:03]} 18. Nxe5 {[%emt 0:03:57]} Bxe5 {[%emt 0:04:11]} 19. Qe2 {[%emt 0:07:12]} 1/2-1/2

[Event "106th British-ch Major 2019"]
[Site "Torquay"]
[Date "2019.07.30"]
[Round "4.8"]
[White "Brown, Tom"]
[Black "Price, Gwilym"]
[Result "1/2-1/2"]
[ECO "C18"]
[WhiteElo "1953"]
[BlackElo "2138"]
[Annotator "ChessBase"]
[PlyCount "40"]
[EventDate "2019.07.27"]
[EventType "swiss"]
[EventCountry "GBR"]
[SourceTitle "playchess.com"]
[Source "ChessBase"]
[SourceQuality "1"]
[TimeControl "40/5400+30:1800+30"]

1. e4 {[%emt 0:00:00]} e6 {[%emt 0:00:00]} 2. d4 {[%emt 0:00:00]} d5 {[%emt 0:00:00]} 3. Nc3 {[%emt 0:00:00]} Bb4 {[%emt 0:00:00]} 4. e5 {[%emt 0:00:00]} c5 {[%emt 0:00:08]} 5. a3 {[%emt 0:00:00]} Bxc3+ {[%emt 0:00:08]} 6. bxc3 {[%emt 0:00:00]} Ne7 {[%emt 0:00:20]} 7. Qg4 {[%emt 0:00:16]} Kf8 {[%emt 0:00:17]} 8. a4 {[%emt 0:00:37]} Qc7 {[%emt 0:02:04]} 9. Nf3 {[%emt 0:00:08]} cxd4 {[%emt 0:06:10]} 10. Qxd4 {[%emt 0:00:06]} Nbc6 {[%emt 0:01:17]} 11. Qc5 {[%emt 0:00:07]} b6 {[%emt 0:02:32]} 12. Qd6 {[%emt 0:00:04]} Qxd6 {[%emt 0:01:28]} 13. exd6 {[%emt 0:00:04]} Ng6 {[%emt 0:00:39]} 14. Ba3 {[%emt 0:00:34]} Bd7 {[%emt 0:02:15]} 15. O-O-O {[%emt 0:01:15]} Na5 {[%emt 0:12:18]} 16. h4 {[%emt 0:01:59]} h5 {[%emt 0:08:16]} 17. Bb4 {[%emt 0:18:49]} Nc6 {[%emt 0:08:30]} 18. Ba3 {[%emt 0:00:13]} Na5 {[%emt 0:07:18]} 19. Bb4 {[%emt 0:00:21]} Nc6 {[%emt 0:16:58]} 20. Ba3 {[%emt 0:06:38]} Nge5 {[%emt 0:00:00]} 1/2-1/2

[Event "106th British-ch Major 2019"]
[Site "Torquay"]
[Date "2019.07.30"]
[Round "4.9"]
[White "Sugden, John N"]
[Black "Garnett, John S"]
[Result "1/2-1/2"]
[ECO "A52"]
[WhiteElo "2068"]
[BlackElo "1885"]
[Annotator "NA"]
[PlyCount "53"]
[EventDate "2019.07.27"]
[EventType "swiss"]
[EventCountry "GBR"]
[SourceTitle "playchess.com"]
[Source "ChessBase"]
[SourceQuality "1"]
[TimeControl "40/5400+30:1800+30"]

1. d4 {[%emt 0:00:00]} Nf6 {[%emt 0:00:00]} 2. c4 {[%emt 0:00:05]} e5 {[%emt 0:00:00]} 3. dxe5 {[%emt 0:00:26]} Ng4 {[%emt 0:00:05]} 4. Bf4 {[%emt 0:01:42]} Nc6 {[%emt 0:00:19]} 5. Nf3 {[%emt 0:00:17]} Bb4+ {[%emt 0:00:31]} 6. Nbd2 {[%emt 0:00:44]} Qe7 {[%emt 0:00:28]} 7. a3 {[%emt 0:00:54]} Ngxe5 {[%emt 0:01:05]} 8. Nxe5 {[%emt 0:00:19]} Nxe5 {[%emt 0:00:22]} 9. e3 {[%emt 0:00:20]} Bc5 {[%emt 0:01:37]} 10. Be2 {[%emt 0:25:24]} d6 {[%emt 0:01:16]} 11. O-O {[%emt 0:01:12]} O-O {[%emt 0:01:19]} 12. Nb3 {[%emt 0:07:58]} Bb6 {[%emt 0:01:04]} 13. Nd4 {[%emt 0:03:25]} Re8 {[%emt 0:03:01]} 14. Bg3 {[%emt 0:05:47]} Bd7 {[%emt 0:02:26]} 15. h3 {[%emt 0:03:15]} Nc6 {[%emt 0:01:50]} 16. Nxc6 {[%emt 0:08:47]} Bxc6 {[%emt 0:00:09]} 17. Bf3 {[%emt 0:01:02]} Bxf3 {[%emt 0:04:38]} 18. Qxf3 {[%emt 0:00:25]} Qe4 {[%emt 0:01:25]} 19. Qxe4 {[%emt 0:01:30]} Rxe4 {[%emt 0:00:06]} 20. Rfc1 {[%emt 0:00:55]} a5 {[%emt 0:03:17]} 21. b4 {[%emt 0:07:31]} axb4 {[%emt 0:03:11]} 22. axb4 {[%emt 0:00:52]} Rxa1 {[%emt 0:04:15]} 23. Rxa1 {[%emt 0:00:12]} h6 {[%emt 0:01:13]} 24. Rc1 {[%emt 0:02:42]} Re7 {[%emt 0:04:32]} 25. Kf1 {[%emt 0:02:56]} Kf8 {[%emt 0:01:12]} 26. Ke2 {[%emt 0:03:58]} Rd7 {[%emt 0:01:25]} 27. Kd3 {[%emt 0:01:37]} 1/2-1/2

[Event "106th British-ch Major 2019"]
[Site "Torquay"]
[Date "2019.07.30"]
[Round "4.10"]
[White "Taylor, William J"]
[Black "Ward, Andy"]
[Result "0-1"]
[ECO "C06"]
[WhiteElo "2062"]
[BlackElo "1822"]
[Annotator "NA"]
[PlyCount "92"]
[EventDate "2019.07.27"]
[EventType "swiss"]
[EventCountry "GBR"]
[SourceTitle "playchess.com"]
[Source "ChessBase"]
[SourceQuality "1"]
[TimeControl "40/5400+30:1800+30"]

1. e4 {[%emt 0:00:00]} e6 {[%emt 0:00:00]} 2. d4 {[%emt 0:00:00]} d5 {[%emt 0:00:00]} 3. Nd2 {[%emt 0:00:00]} Nf6 {[%emt 0:00:00]} 4. e5 {[%emt 0:00:00]} Nfd7 {[%emt 0:00:00]} 5. Bd3 {[%emt 0:00:02]} c5 {[%emt 0:00:00]} 6. c3 {[%emt 0:00:06]} Nc6 {[%emt 0:00:00]} 7. Ne2 {[%emt 0:00:07]} cxd4 {[%emt 0:00:01]} 8. cxd4 {[%emt 0:00:06]} f6 {[%emt 0:00:03]} 9. exf6 {[%emt 0:00:07]} Nxf6 {[%emt 0:00:05]} 10. O-O {[%emt 0:00:08]} Bd6 {[%emt 0:00:03]} 11. Nf3 {[%emt 0:00:16]} Qc7 {[%emt 0:00:03]} 12. h3 {[%emt 0:00:43]} O-O {[%emt 0:00:09]} 13. Be3 {[%emt 0:00:09]} Bd7 {[%emt 0:00:30]} 14. Re1 {[%emt 0:00:29]} e5 {[%emt 0:08:00]} 15. dxe5 {[%emt 0:01:10]} Nxe5 {[%emt 0:00:07]} 16. Nxe5 {[%emt 0:00:15]} Bxe5 {[%emt 0:00:05]} 17. Bd4 {[%emt 0:05:54]} Rae8 {[%emt 0:13:20]} 18. Qb3 {[%emt 0:10:00]} Bxd4 {[%emt 0:10:37]} 19. Nxd4 {[%emt 0:00:12]} Qa5 {[%emt 0:00:04]} 20. Nf3 {[%emt 0:36:47]} Rxe1+ {[%emt 0:02:07]} 21. Rxe1 {[%emt 0:01:02]} Re8 {[%emt 0:00:07]} 22. Rxe8+ {[%emt 0:08:33]} Bxe8 {[%emt 0:00:08]} 23. a3 {[%emt 0:00:14]} Qc7 {[%emt 0:00:53]} 24. Qd1 {[%emt 0:06:13]} Bh5 {[%emt 0:08:40]} 25. g4 {[%emt 0:06:45]} Be8 {[%emt 0:02:02]} 26. Bc2 {[%emt 0:04:02]} Bc6 {[%emt 0:11:02]} 27. Qd3 {[%emt 0:01:39]} Qf4 {[%emt 0:01:14]} 28. g5 {[%emt 0:14:29]} Ne4 {[%emt 0:00:38]} 29. Bb3 {[%emt 0:00:01]} Qc1+ {[%emt 0:02:10]} 30. Kg2 {[%emt 0:01:17]} Qh1+ {[%emt 0:01:22]} 31. Kxh1 {[%emt 0:00:22]} Nxf2+ {[%emt 0:00:05]} 32. Kg2 {[%emt 0:01:59]} Nxd3 {[%emt 0:00:08]} 33. Kf1 {[%emt 0:01:08]} Nxb2 {[%emt 0:00:14]} 34. Ne5 {[%emt 0:00:30]} Bb5+ {[%emt 0:00:29]} 35. Kf2 {[%emt 0:01:03]} Bc4 {[%emt 0:00:11]} 36. Bc2 {[%emt 0:00:31]} b5 {[%emt 0:01:03]} 37. Ke3 {[%emt 0:00:12]} Bf1 {[%emt 0:00:59]} 38. Bf5 {[%emt 0:01:26]} Nc4+ {[%emt 0:00:25]} 39. Kd4 {[%emt 0:00:24]} Nxe5 {[%emt 0:01:30]} 40. Kxe5 {[%emt 0:00:01]} Bc4 {[%emt 0:00:29]} 41. Be6+ {[%emt 0:31:28]} Kf8 {[%emt 0:30:06]} 42. Bxd5 {[%emt 0:00:04]} Bxd5 {[%emt 0:00:39]} 43. Kxd5 {[%emt 0:00:04]} a5 {[%emt 0:00:04]} 44. Kc5 {[%emt 0:00:24]} b4 {[%emt 0:00:04]} 45. axb4 {[%emt 0:00:04]} axb4 {[%emt 0:00:05]} 46. Kxb4 {[%emt 0:00:25]} Kf7 {[%emt 0:00:03]} 0-1